[Event "The Kvibergspelen 2024"]
[Site "Kviberg Park Hotel & Conference, Krutvagen 2, Gothenburg, Sweden"]
[Date "2024.09.07"]
[Round "5.14"]
[White "Lehtonen, Ture"]
[Black "Stedman, Theodor"]
[Result "1-0"]
[TimeControl "15 minutes + 5 seconds per move from move one (Round 1 - 4) / 90 minutes + 30 seconds per move from move one (Round 5 - 8)"]
[WhiteFideId "1712446"]
[BlackFideId "1756230"]
[WhiteElo "2099"]
[BlackElo "1932"]

1. c4 {[%clk 01:30:59]} {[%emt 00:00:01]} c5 {[%clk 01:29:34]} {[%emt
00:01:27]} 2. Nc3 {[%clk 01:31:06]} {[%emt 00:00:23]} Nc6 {[%clk 01:30:00]}
{[%emt 00:00:04]} 3. g3 {[%clk 01:31:13]} {[%emt 00:00:22]} g6 {[%clk
01:30:19]} {[%emt 00:00:11]} 4. Bg2 {[%clk 01:31:30]} {[%emt 00:00:13]} Bg7
{[%clk 01:30:43]} {[%emt 00:00:06]} 5. h4 {[%clk 01:31:48]} {[%emt 00:00:11]}
d6 {[%clk 01:29:07]} {[%emt 00:02:08]} 6. d3 {[%clk 01:31:01]} {[%emt
00:01:17]} e5 {[%clk 01:28:41]} {[%emt 00:00:55]} 7. Nf3 {[%clk 01:30:58]}
{[%emt 00:00:33]} h6 {[%clk 01:28:52]} {[%emt 00:00:20]} 8. Bd2 {[%clk
01:30:25]} {[%emt 00:01:02]} Nge7 {[%clk 01:28:09]} {[%emt 00:01:14]} 9. Qc1
{[%clk 01:30:36]} {[%emt 00:00:18]} a6 {[%clk 01:27:55]} {[%emt 00:00:45]} 10.
O-O {[%clk 01:30:03]} {[%emt 00:01:02]} Rb8 {[%clk 01:28:03]} {[%emt 00:00:23]}
11. Ne1 {[%clk 01:29:15]} {[%emt 00:01:17]} b5 {[%clk 01:26:35]} {[%emt
00:01:58]} 12. b3 {[%clk 01:28:51]} {[%emt 00:00:54]} Nd4 {[%clk 01:21:31]}
{[%emt 00:05:35]} 13. e3 {[%clk 01:28:20]} {[%emt 00:01:00]} b4 {[%clk
01:20:35]} {[%emt 00:01:26]} 14. exd4 {[%clk 01:28:44]} {[%emt 00:00:06]} bxc3
{[%clk 01:20:52]} {[%emt 00:00:13]} 15. Bxc3 {[%clk 01:29:05]} {[%emt
00:00:08]} exd4 {[%clk 01:21:00]} {[%emt 00:00:23]} 16. Bd2 {[%clk 01:29:28]}
{[%emt 00:00:06]} Bb7 {[%clk 01:18:17]} {[%emt 00:03:14]} 17. Nf3 {[%clk
01:26:35]} {[%emt 00:03:23]} Qd7 {[%clk 01:14:22]} {[%emt 00:04:26]} 18. Re1
{[%clk 01:26:29]} {[%emt 00:00:34]} Qf5 {[%clk 01:14:23]} {[%emt 00:00:30]} 19.
Bf4 {[%clk 01:22:50]} {[%emt 00:04:09]} Kd7 {[%clk 01:09:29]} {[%emt 00:05:25]}
20. Qa3 {[%clk 01:22:59]} {[%emt 00:00:20]} Nc6 {[%clk 01:03:26]} {[%emt
00:06:34]} 21. Nd2 {[%clk 01:19:30]} {[%emt 00:03:57]} g5 {[%clk 01:02:35]}
{[%emt 00:01:22]} 22. Kh2 {[%clk 01:19:18]} {[%emt 00:00:42]} Qg6 {[%clk
00:55:29]} {[%emt 00:07:36]} 23. Bxd6 {[%clk 01:19:23]} {[%emt 00:00:26]} Kxd6
{[%clk 00:53:58]} {[%emt 00:02:01]} 24. Ne4+ {[%clk 01:19:18]} {[%emt
00:00:34]} Kc7 {[%clk 00:51:03]} {[%emt 00:03:25]} 25. Nxc5 {[%clk 01:17:25]}
{[%emt 00:02:23]} gxh4 {[%clk 00:46:32]} {[%emt 00:05:01]} 26. Nxb7 {[%clk
00:57:08]} {[%emt 00:20:47]} Rxb7 {[%clk 00:40:59]} {[%emt 00:06:03]} 27. Re7+
{[%clk 00:53:50]} {[%emt 00:03:48]} Kb8 {[%clk 00:39:35]} {[%emt 00:01:53]} 28.
Rxb7+ {[%clk 00:48:49]} {[%emt 00:05:32]} Kxb7 {[%clk 00:40:00]} {[%emt
00:00:05]} 29. Qe7+ {[%clk 00:38:55]} {[%emt 00:10:24]} Kc8 {[%clk 00:40:10]}
{[%emt 00:00:20]} 30. Qxh4 {[%clk 00:38:55]} {[%emt 00:00:30]} Re8 {[%clk
00:37:20]} {[%emt 00:03:20]} 31. Bxc6 {[%clk 00:35:28]} {[%emt 00:03:56]} Qxc6
{[%clk 00:37:42]} {[%emt 00:00:09]} 32. Qg4+ {[%clk 00:35:54]} {[%emt
00:00:04]} Kb7 {[%clk 00:37:05]} {[%emt 00:01:07]} 33. Qxg7 {[%clk 00:36:16]}
{[%emt 00:00:08]} Qd7 {[%clk 00:31:46]} {[%emt 00:05:49]} 34. Qxh6 {[%clk
00:35:42]} {[%emt 00:01:04]} Qc8 {[%clk 00:28:43]} {[%emt 00:03:32]} 35. Kg1
{[%clk 00:34:08]} {[%emt 00:02:06]} Rh8 {[%clk 00:28:04]} {[%emt 00:01:08]} 36.
Qf6 {[%clk 00:30:17]} {[%emt 00:04:21]} Qh3 {[%clk 00:28:10]} {[%emt 00:00:24]}
37. Qf3+ {[%clk 00:30:38]} {[%emt 00:00:10]} Kb8 {[%clk 00:27:46]} {[%emt
00:00:54]} 38. Qg2 {[%clk 00:30:52]} {[%emt 00:00:15]} Qf5 {[%clk 00:28:06]}
{[%emt 00:00:09]} 39. Qe4 {[%clk 00:28:55]} {[%emt 00:02:28]} Qh3 {[%clk
00:27:05]} {[%emt 00:01:30]} 40. Re1 {[%clk 00:28:40]} {[%emt 00:00:45]} f5
{[%clk 00:26:30]} {[%emt 00:01:06]} 41. Qg2 {[%clk 00:28:20]} {[%emt 00:00:50]}
Qg4 {[%clk 00:26:58]} {[%emt 00:00:02]} 42. Qc6 {[%clk 00:28:03]} {[%emt
00:00:47]} Qh5 {[%clk 00:27:18]} {[%emt 00:00:10]} 43. Qb6+ {[%clk 00:26:56]}
{[%emt 00:01:38]} Kc8 {[%clk 00:27:16]} {[%emt 00:00:32]} 44. Qxa6+ {[%clk
00:27:08]} {[%emt 00:00:18]} Kc7 {[%clk 00:27:12]} {[%emt 00:00:33]} 45. Re7+
{[%clk 00:27:16]} {[%emt 00:00:22]} Kd8 {[%clk 00:27:34]} {[%emt 00:00:09]} 46.
Qd6+ {[%clk 00:27:40]} {[%emt 00:00:06]} 1-0

[Event "The Kvibergspelen 2024"]
[Site "Kviberg Park Hotel & Conference, Krutvagen 2, Gothenburg, Sweden"]
[Date "2024.09.07"]
[Round "5.15"]
[White "Harila, Per"]
[Black "Andersson, Robert"]
[Result "0-1"]
[TimeControl "15 minutes + 5 seconds per move from move one (Round 1 - 4) / 90 minutes + 30 seconds per move from move one (Round 5 - 8)"]
[WhiteFideId "1707248"]
[BlackFideId "1703226"]
[WhiteElo "1922"]
[BlackElo "2098"]

1. c4 {[%clk 01:30:57]} {[%emt 00:00:03]} Nf6 {[%clk 01:28:33]} {[%emt
00:02:28]} 2. g3 {[%clk 01:31:18]} {[%emt 00:00:09]} c5 {[%clk 01:27:08]}
{[%emt 00:01:55]} 3. Bg2 {[%clk 01:31:38]} {[%emt 00:00:10]} Nc6 {[%clk
01:27:03]} {[%emt 00:00:34]} 4. Nc3 {[%clk 01:31:51]} {[%emt 00:00:18]} g6
{[%clk 01:27:01]} {[%emt 00:00:32]} 5. d3 {[%clk 01:32:14]} {[%emt 00:00:07]}
Bg7 {[%clk 01:27:20]} {[%emt 00:00:11]} 6. e4 {[%clk 01:32:41]} {[%emt
00:00:03]} d6 {[%clk 01:27:32]} {[%emt 00:00:18]} 7. Nge2 {[%clk 01:32:07]}
{[%emt 00:01:04]} O-O {[%clk 01:27:24]} {[%emt 00:00:37]} 8. O-O {[%clk
01:32:20]} {[%emt 00:00:18]} Rb8 {[%clk 01:25:56]} {[%emt 00:01:58]} 9. a4
{[%clk 01:31:06]} {[%emt 00:01:45]} a6 {[%clk 01:26:18]} {[%emt 00:00:07]} 10.
h3 {[%clk 01:30:56]} {[%emt 00:00:40]} Ne8 {[%clk 01:26:16]} {[%emt 00:00:32]}
11. f4 {[%clk 01:30:27]} {[%emt 00:00:59]} Nc7 {[%clk 01:25:43]} {[%emt
00:01:03]} 12. g4 {[%clk 01:28:31]} {[%emt 00:02:26]} b5 {[%clk 01:25:27]}
{[%emt 00:00:47]} 13. axb5 {[%clk 01:28:01]} {[%emt 00:01:00]} axb5 {[%clk
01:25:51]} {[%emt 00:00:06]} 14. cxb5 {[%clk 01:27:48]} {[%emt 00:00:43]} Nxb5
{[%clk 01:26:14]} {[%emt 00:00:06]} 15. Nxb5 {[%clk 01:28:06]} {[%emt
00:00:11]} Rxb5 {[%clk 01:26:38]} {[%emt 00:00:07]} 16. Nc3 {[%clk 01:27:54]}
{[%emt 00:00:43]} Ra5 {[%clk 01:26:31]} {[%emt 00:00:36]} 17. Be3 {[%clk
01:24:13]} {[%emt 00:04:10]} Nd4 {[%clk 01:23:05]} {[%emt 00:03:57]} 18. Bf2
{[%clk 00:58:33]} {[%emt 00:26:09]} Rxa1 {[%clk 01:20:22]} {[%emt 00:03:14]} 19.
Qxa1 {[%clk 00:59:01]} {[%emt 00:00:02]} Bb7 {[%clk 01:20:13]} {[%emt
00:00:38]} 20. Qa7 {[%clk 00:58:28]} {[%emt 00:01:04]} Qb8 {[%clk 01:19:22]}
{[%emt 00:01:20]} 21. Ra1 {[%clk 00:56:48]} {[%emt 00:02:12]} Qxa7 {[%clk
01:18:11]} {[%emt 00:01:41]} 22. Rxa7 {[%clk 00:57:15]} {[%emt 00:00:02]} Rb8
{[%clk 01:18:26]} {[%emt 00:00:15]} 23. Kf1 {[%clk 00:39:55]} {[%emt 00:17:50]}
Nc6 {[%clk 01:17:58]} {[%emt 00:00:57]} 24. Ra1 {[%clk 00:37:11]} {[%emt
00:03:14]} Nb4 {[%clk 01:17:30]} {[%emt 00:00:59]} 25. Bh4 {[%clk 00:29:51]}
{[%emt 00:07:50]} Bf8 {[%clk 01:11:41]} {[%emt 00:06:18]} 26. e5 {[%clk
00:27:16]} {[%emt 00:03:05]} Bxg2+ {[%clk 01:10:34]} {[%emt 00:01:37]} 27. Kxg2
{[%clk 00:27:44]} {[%emt 00:00:03]} dxe5 {[%clk 01:10:40]} {[%emt 00:00:24]} 28.
fxe5 {[%clk 00:27:26]} {[%emt 00:00:48]} Nxd3 {[%clk 01:09:47]} {[%emt
00:01:23]} 29. Nd5 {[%clk 00:26:40]} {[%emt 00:01:16]} Nxe5 {[%clk 00:57:53]}
{[%emt 00:12:24]} 30. Nxe7+ {[%clk 00:25:10]} {[%emt 00:02:00]} Kg7 {[%clk
00:57:12]} {[%emt 00:01:10]} 31. Nd5 {[%clk 00:25:28]} {[%emt 00:00:14]} Rxb2+
{[%clk 00:55:06]} {[%emt 00:02:36]} 32. Kf1 {[%clk 00:20:00]} {[%emt 00:05:57]}
Bd6 {[%clk 00:30:50]} {[%emt 00:24:46]} 33. Ra6 {[%clk 00:12:57]} {[%emt
00:07:33]} Bb8 {[%clk 00:29:46]} {[%emt 00:01:34]} 34. Bf6+ {[%clk 00:12:46]}
{[%emt 00:00:41]} Kh6 {[%clk 00:28:12]} {[%emt 00:02:02]} 35. h4 {[%clk
00:12:51]} {[%emt 00:00:27]} Rb1+ {[%clk 00:27:33]} {[%emt 00:01:08]} 36. Ke2
{[%clk 00:11:56]} {[%emt 00:01:26]} Nxg4 {[%clk 00:27:46]} {[%emt 00:00:17]} 37.
Bg5+ {[%clk 00:11:29]} {[%emt 00:00:57]} Kg7 {[%clk 00:26:23]} {[%emt
00:01:52]} 38. Be7 {[%clk 00:09:37]} {[%emt 00:02:22]} c4 {[%clk 00:25:55]}
{[%emt 00:00:58]} 39. Rc6 {[%clk 00:10:03]} {[%emt 00:00:05]} Rb2+ {[%clk
00:25:34]} {[%emt 00:00:50]} 40. Kd1 {[%clk 00:09:53]} {[%emt 00:00:40]} Rb5
{[%clk 00:22:45]} {[%emt 00:03:19]} 41. Nc3 {[%clk 00:07:40]} {[%emt 00:02:43]}
Rb3 {[%clk 00:22:31]} {[%emt 00:00:45]} 42. Ne4 {[%clk 00:06:23]} {[%emt
00:01:47]} Re3 {[%clk 00:20:11]} {[%emt 00:02:49]} 43. Rxc4 {[%clk 00:02:59]}
{[%emt 00:03:55]} Rxe4 {[%clk 00:18:30]} {[%emt 00:02:11]} 0-1

[Event "The Kvibergspelen 2024"]
[Site "Kviberg Park Hotel & Conference, Krutvagen 2, Gothenburg, Sweden"]
[Date "2024.09.07"]
[Round "5.16"]
[White "Kashwan, Hassan"]
[Black "Schriever-Abeln, Marius"]
[Result "1-0"]
[TimeControl "15 minutes + 5 seconds per move from move one (Round 1 - 4) / 90 minutes + 30 seconds per move from move one (Round 5 - 8)"]
[WhiteFideId "137122555"]
[BlackFideId "1752650"]
[WhiteElo "1936"]
[BlackElo "2069"]

1. d4 {[%clk 01:21:12]} {[%emt 00:09:48]} Nf6 {[%clk 01:30:52]} {[%emt
00:00:08]} 2. c4 {[%clk 01:21:22]} {[%emt 00:00:20]} e6 {[%clk 01:31:11]}
{[%emt 00:00:12]} 3. Nf3 {[%clk 01:21:36]} {[%emt 00:00:15]} d5 {[%clk
01:31:24]} {[%emt 00:00:17]} 4. g3 {[%clk 01:21:26]} {[%emt 00:00:40]} Bb4+
{[%clk 01:31:09]} {[%emt 00:00:45]} 5. Nbd2 {[%clk 01:20:40]} {[%emt 00:01:16]}
dxc4 {[%clk 01:25:39]} {[%emt 00:06:00]} 6. Qa4+ {[%clk 01:09:11]} {[%emt
00:11:59]} Nc6 {[%clk 01:24:44]} {[%emt 00:01:25]} 7. e3 {[%clk 01:03:50]}
{[%emt 00:05:52]} Bd7 {[%clk 01:20:14]} {[%emt 00:04:59]} 8. Qc2 {[%clk
01:03:01]} {[%emt 00:01:18]} b5 {[%clk 01:06:27]} {[%emt 00:14:18]} 9. Bg2
{[%clk 01:01:25]} {[%emt 00:02:06]} O-O {[%clk 01:03:38]} {[%emt 00:03:20]} 10.
O-O {[%clk 01:01:27]} {[%emt 00:00:27]} Nd5 {[%clk 00:51:25]} {[%emt 00:12:44]}
11. Ne4 {[%clk 00:55:53]} {[%emt 00:06:03]} Qe7 {[%clk 00:49:13]} {[%emt
00:02:42]} 12. a3 {[%clk 00:55:57]} {[%emt 00:00:26]} Bd6 {[%clk 00:47:49]}
{[%emt 00:01:54]} 13. Nfg5 {[%clk 00:54:02]} {[%emt 00:02:25]} f5 {[%clk
00:37:08]} {[%emt 00:11:11]} 14. Nxd6 {[%clk 00:52:58]} {[%emt 00:01:33]} cxd6
{[%clk 00:35:38]} {[%emt 00:02:01]} 15. h4 {[%clk 00:52:26]} {[%emt 00:01:01]}
h6 {[%clk 00:31:31]} {[%emt 00:04:38]} 16. Nh3 {[%clk 00:52:31]} {[%emt
00:00:24]} Na5 {[%clk 00:29:22]} {[%emt 00:02:40]} 17. Bd2 {[%clk 00:49:00]}
{[%emt 00:04:00]} Nb3 {[%clk 00:29:00]} {[%emt 00:00:54]} 18. Rad1 {[%clk
00:48:39]} {[%emt 00:00:49]} Rac8 {[%clk 00:26:40]} {[%emt 00:02:51]} 19. Bxd5
{[%clk 00:47:56]} {[%emt 00:01:14]} exd5 {[%clk 00:25:55]} {[%emt 00:01:15]} 20.
Nf4 {[%clk 00:44:13]} {[%emt 00:04:12]} Nxd2 {[%clk 00:21:03]} {[%emt
00:05:23]} 21. Rxd2 {[%clk 00:43:51]} {[%emt 00:00:51]} Qf7 {[%clk 00:18:14]}
{[%emt 00:03:19]} 22. h5 {[%clk 00:43:17]} {[%emt 00:01:04]} a5 {[%clk
00:16:40]} {[%emt 00:02:05]} 23. Rc1 {[%clk 00:33:01]} {[%emt 00:10:45]} Bc6
{[%clk 00:13:57]} {[%emt 00:03:14]} 24. Qd1 {[%clk 00:32:19]} {[%emt 00:01:11]}
b4 {[%clk 00:12:29]} {[%emt 00:01:58]} 25. Qf3 {[%clk 00:28:38]} {[%emt
00:04:11]} bxa3 {[%clk 00:10:32]} {[%emt 00:02:27]} 26. bxa3 {[%clk 00:28:40]}
{[%emt 00:00:28]} Rb8 {[%clk 00:10:08]} {[%emt 00:00:55]} 27. Ng6 {[%clk
00:27:43]} {[%emt 00:01:26]} Rfc8 {[%clk 00:08:59]} {[%emt 00:01:40]} 28. Qf4
{[%clk 00:26:34]} {[%emt 00:01:36]} Qe6 {[%clk 00:06:23]} {[%emt 00:03:08]} 29.
Qxf5 {[%clk 00:21:01]} {[%emt 00:06:03]} Qxf5 {[%clk 00:05:02]} {[%emt
00:01:52]} 30. Ne7+ {[%clk 00:16:34]} {[%emt 00:04:56]} Kf7 {[%clk 00:05:22]}
{[%emt 00:00:11]} 31. Nxf5 {[%clk 00:16:58]} {[%emt 00:00:05]} Ke6 {[%clk
00:05:01]} {[%emt 00:00:51]} 32. g4 {[%clk 00:16:35]} {[%emt 00:00:52]} Ba4
{[%clk 00:04:32]} {[%emt 00:01:00]} 33. e4 {[%clk 00:14:48]} {[%emt 00:02:17]}
dxe4 {[%clk 00:03:44]} {[%emt 00:01:18]} 34. d5+ {[%clk 00:14:20]} {[%emt
00:00:57]} Ke5 {[%clk 00:03:15]} {[%emt 00:01:01]} 35. Re2 {[%clk 00:14:09]}
{[%emt 00:00:40]} Rb3 {[%clk 00:02:48]} {[%emt 00:00:58]} 36. Rce1 {[%clk
00:13:42]} {[%emt 00:00:53]} c3 {[%clk 00:00:48]} {[%emt 00:02:34]} 37. Rxe4+
{[%clk 00:14:10]} {[%emt 00:00:02]} Kf6 {[%clk 00:01:09]} {[%emt 00:00:09]} 38.
Nxd6 {[%clk 00:09:53]} {[%emt 00:04:45]} Rcb8 {[%clk 00:01:19]} {[%emt
00:00:22]} 39. f4 {[%clk 00:09:34]} {[%emt 00:00:46]} Bd7 {[%clk 00:01:10]}
{[%emt 00:00:42]} 40. Re6+ {[%clk 00:09:55]} {[%emt 00:00:07]} 1-0

[Event "The Kvibergspelen 2024"]
[Site "Kviberg Park Hotel & Conference, Krutvagen 2, Gothenburg, Sweden"]
[Date "2024.09.07"]
[Round "5.17"]
[White "Olsson, Thomas"]
[Black "Krilovs, Nikolajs"]
[Result "0-1"]
[TimeControl "15 minutes + 5 seconds per move from move one (Round 1 - 4) / 90 minutes + 30 seconds per move from move one (Round 5 - 8)"]
[WhiteFideId "1702696"]
[BlackFideId "11603100"]
[WhiteElo "1902"]
[BlackElo "2054"]

1. e4 {[%clk 01:29:28]} {[%emt 00:01:31]} g6 {[%clk 01:30:54]} {[%emt
00:00:07]} 2. d4 {[%clk 01:28:53]} {[%emt 00:01:05]} Bg7 {[%clk 01:31:08]}
{[%emt 00:00:16]} 3. c4 {[%clk 01:26:24]} {[%emt 00:02:59]} c5 {[%clk
01:28:22]} {[%emt 00:03:15]} 4. d5 {[%clk 01:21:03]} {[%emt 00:05:52]} d6
{[%clk 01:25:51]} {[%emt 00:03:01]} 5. Nc3 {[%clk 01:20:28]} {[%emt 00:01:05]}
Nf6 {[%clk 01:24:29]} {[%emt 00:01:52]} 6. f4 {[%clk 01:13:38]} {[%emt
00:07:20]} O-O {[%clk 01:21:01]} {[%emt 00:03:56]} 7. Nf3 {[%clk 01:10:28]}
{[%emt 00:03:41]} e6 {[%clk 01:20:38]} {[%emt 00:00:53]} 8. Be2 {[%clk
01:09:48]} {[%emt 00:01:09]} exd5 {[%clk 01:21:01]} {[%emt 00:00:08]} 9. exd5
{[%clk 01:09:55]} {[%emt 00:00:23]} Bf5 {[%clk 01:17:55]} {[%emt 00:03:36]} 10.
O-O {[%clk 01:06:40]} {[%emt 00:03:44]} Re8 {[%clk 01:18:11]} {[%emt 00:00:15]}
11. Kh1 {[%clk 01:00:28]} {[%emt 00:06:43]} Na6 {[%clk 01:12:46]} {[%emt
00:05:54]} 12. Bd3 {[%clk 00:49:02]} {[%emt 00:11:55]} Bxd3 {[%clk 01:05:48]}
{[%emt 00:07:28]} 13. Qxd3 {[%clk 00:49:19]} {[%emt 00:00:13]} Ng4 {[%clk
01:05:44]} {[%emt 00:00:34]} 14. a3 {[%clk 00:41:42]} {[%emt 00:08:07]} Bd4
{[%clk 01:01:40]} {[%emt 00:04:34]} 15. Nxd4 {[%emt 00:11:31]} cxd4 {[%clk
01:01:42]} {[%emt 00:00:20]} 16. Nd1 {[%clk 00:22:25]} {[%emt 00:08:54]} Qh4
{[%clk 00:58:48]} {[%emt 00:03:24]} 17. h3 {[%clk 00:14:20]} {[%emt 00:08:36]}
Nc5 {[%clk 00:54:35]} {[%emt 00:04:43]} 18. Qf3 {[%clk 00:14:10]} {[%emt
00:00:39]} Re1 {[%clk 00:53:31]} {[%emt 00:01:34]} 19. Bd2 {[%clk 00:11:35]}
{[%emt 00:03:05]} Qg3 {[%clk 00:51:30]} {[%emt 00:02:31]} 20. hxg4 {[%clk
00:08:42]} {[%emt 00:03:23]} Qxf3 {[%clk 00:51:45]} {[%emt 00:00:15]} 21. gxf3
{[%clk 00:09:01]} {[%emt 00:00:11]} Rxf1+ {[%clk 00:52:09]} {[%emt 00:00:07]}
22. Kg2 {[%clk 00:09:20]} {[%emt 00:00:10]} Nb3 {[%clk 00:52:31]} {[%emt
00:00:08]} 23. Kxf1 {[%clk 00:08:55]} {[%emt 00:00:54]} Nxa1 {[%clk 00:51:28]}
{[%emt 00:01:33]} 24. Bb4 {[%clk 00:09:14]} {[%emt 00:00:11]} Rd8 {[%clk
00:51:05]} {[%emt 00:00:53]} 25. Ke2 {[%clk 00:08:36]} {[%emt 00:01:09]} Nb3
{[%clk 00:50:19]} {[%emt 00:01:15]} 26. Kd3 {[%clk 00:08:33]} {[%emt 00:00:34]}
a5 {[%clk 00:50:38]} {[%emt 00:00:11]} 27. Be1 {[%clk 00:08:33]} {[%emt
00:00:29]} h5 {[%clk 00:50:23]} {[%emt 00:00:46]} 28. Bh4 {[%clk 00:07:12]}
{[%emt 00:01:51]} Re8 {[%clk 00:50:16]} {[%emt 00:00:37]} 29. Bg3 {[%clk
00:06:45]} {[%emt 00:00:56]} f5 {[%clk 00:50:06]} {[%emt 00:00:40]} 30. Bh4
{[%clk 00:05:26]} {[%emt 00:01:50]} hxg4 {[%clk 00:50:06]} {[%emt 00:00:30]} 31.
fxg4 {[%clk 00:05:53]} {[%emt 00:00:03]} fxg4 {[%clk 00:49:34]} {[%emt
00:01:02]} 32. Kc2 {[%clk 00:05:06]} {[%emt 00:01:17]} a4 {[%clk 00:49:24]}
{[%emt 00:00:40]} 33. Nf2 {[%clk 00:05:25]} {[%emt 00:00:11]} Re2+ {[%clk
00:49:06]} {[%emt 00:00:48]} 34. Kd1 {[%clk 00:05:46]} {[%emt 00:00:09]} Rxb2
{[%clk 00:48:35]} {[%emt 00:01:01]} 35. Nxg4 {[%clk 00:06:07]} {[%emt
00:00:08]} d3 {[%clk 00:48:48]} {[%emt 00:00:18]} 36. Nf6+ {[%clk 00:05:59]}
{[%emt 00:00:39]} Kf7 {[%clk 00:49:09]} {[%emt 00:00:08]} 37. Ne4 {[%emt
00:00:54]} Rb1# {[%clk 00:49:27]} {[%emt 00:00:09]} 0-1